Workbook

Sheet Input Page
A1: PROFORMA FOR DETERMINING ENERGY EFFICIENCY USING R1
A2: Site name, address and grid reference | B2: Medworth Energy from Waste Combined Heat and Power Facility, Algores Way, Wisbech, Cambridgeshire, PE13 2TQ | C2: EPR Permit reference (if known) | E2: EPR/VP3705BL/A001 | AD2: Choose an option
A3: Operator name | B3: Medworth CHP Ltd | C3: Application fee (£) | E3: Included with permit application fee
A4: Details of who to contact if we have any queries regarding this form | B4: Per the contact details provided on form Part A
A5: What data has been used in the application? → | C5: Design data | AD5: Design data
A6: Indicative R1 factor (subject to confirmation) | B6: ='Summary calculation'!B6 -> 0.8074623674 | C6: Quantity in reporting year | D6: Units | E6: Uc | F6: Properties (Average over reporting year) | G6: Units | H6: Note which parameters that have been estimated | I6: Reference to Supporting information | AD6: Commissioning Data
A7: Climate change correction factor (optional) | B7: 1.12
A8: R1 after CCF adjustment | B8: =IF(B7="","",'Summary calculation'!B8) -> 0.9043578515
A9: 1. Gross electricity meter (Electricity produced at turbine) | C9: =60*8000 -> 480000 | D9: MWh
A10: 2. Electricity exported - Net input/output meter | C10: =55*8000 -> 440000 | D10: MWh
A11: 3. Electricity imported - Net input/output meter | C11: =44.09*4*2 -> 352.72 | D11: MWh
A12: 4. Other fuel inputs
B13: 4.1 Light fuel oil | C13: =523500*3.1 -> 1622850 | D13: litres | F13: 0.85 | G13: kg/l | I13: Digest of UK Energy Statistics (DUKES) 2021
F14: 42600 | G14: kJ/kg
B15: 4.2 Natural gas | D15: Nm3 | F15: 34200 | G15: kJ/Nm3
B17: 4.3 LPG | D17: Nm3 | G17: kg/Nm3
G18: kJ/kg
B19: 4.4 Other fuels similar to light fuel oil | D19: litres | G19: kg/l
G20: kJ/kg
A21: 5. Primary combustion air (as supplied to furnace) | C21: =(127.7*1000*2*8000)/F21 -> 2169002123 | D21: m3 | F21: 0.942 | G21: kg/Nm3
F22: 99.97 | G22: °C
F23: =IF(1.01*(F22-25)<0,0,1.01*(F22-25)) -> 75.7197 | G23: kJ/kg
A24: 6. Secondary combustion air (as supplied to furnace) | C24: =(69.59*1000*2*8000)/F24 -> 971588132.6 | D24: m3 | F24: 1.146 | G24: kg/Nm3
F25: 33.72 | G25: °C
F26: =IF(1.01*(F25-25)<0,0,1.01*(F25-25)) -> 8.8072 | G26: kJ/kg
A27: 7. Recycled flue gas (as supplied to furnace) | D27: m3 | G27: kg/Nm3
G28: °C
F29: =IF(1.01*(F28-25)<0,0,1.01*(F28-25)) -> 0 | G29: kJ/kg
A30: 8. Heat exported outside R1 boundary
B31: 8.1 steam exported | D31: tonnes | G31: °C
G32: kPa
G33: kJ/kg
B34: condensate returned | D34: tonnes | G34: °C
G35: kPa
G36: kJ/kg
B37: 8.2 hot water exported | D37: tonnes | G37: °C
G38: kPa
G39: kJ/kg
B40: hot water returned | D40: tonnes | G40: °C
G41: kPa
G42: kJ/kg
A44: 9. Internal steam use
B45: 9.1 for soot blowing (no backflow) | D45: tonnes | G45: °C
G46: kPa
G47: kJ/kg
B48: 9.2 for steam driven devices | D48: tonnes | G48: °C
G49: kPa
G50: kJ/kg
B51: backflow as steam | D51: tonnes | G51: °C
G52: kPa
G53: kJ/kg
B54: 9.3 for trace heating | D54: tonnes | G54: °C
G55: kPa
G56: kJ/kg
B57: backflow as condensate | D57: tonnes | G57: °C
G58: kPa
G59: kJ/kg
B60: 9.4 for re-heating flue gas | D60: tonnes | G60: °C
G61: kPa
G62: kJ/kg
B63: backflow as condensate | D63: tonnes | G63: °C
G64: kPa
G65: kJ/kg
B66: 9.5 for concentration processes | D66: tonnes | G66: °C
G67: kPa
G68: kJ/kg
B69: backflow as condensate | D69: tonnes | G69: °C
G70: kPa
G71: kJ/kg
B72: 9.6 for building, equipment, tank heating | D72: tonnes | G72: °C
G73: kPa
G74: kJ/kg
B75: backflow as condensate | D75: tonnes | G75: °C
G76: kPa
G77: kJ/kg
B78: 9.7 for deaeration and demineralisation | D78: tonnes | G78: °C
G79: kPa
G80: kJ/kg
B81: backflow as condensate | D81: tonnes | G81: °C
G82: kPa
G83: kJ/kg
B84: 9.8 other internal applications, in line with commission guidance, to be specified | D84: tonnes | G84: °C
G85: kPa
G86: kJ/kg
B87: backflow as condensate | D87: tonnes | G87: °C
G88: kPa
G89: kJ/kg
B90: 9.9 other internal applications, in line with commission guidance, to be specified | D90: tonnes | G90: °C
G91: kPa
G92: kJ/kg
B93: backflow as condensate | D93: tonnes | G93: °C
G94: kPa
G95: kJ/kg
A96: 10. Use of condensing energy from steam in flue gas | D96: GJ
A97: 11. Superheated steam at boiler outlet | C97: =125.7*2*8000 -> 2011200 | D97: tonnes | F97: 380 | G97: °C
F98: 4619 | G98: kPa
F99: 3155 | G99: kJ/kg
A100: 12. Boiler feedwater | C100: =126.9*2*8000 -> 2030400 | D100: tonnes | F100: 131.3 | G100: °C
F101: 6369 | G101: kPa
F102: 556.2 | G102: kJ/kg
A103: =IF(C5="Choose an option","13. Boiler Efficiency",IF(C5="Design data"," 13. Boiler Efficiency (Design)","13. Boiler Efficiency (Acceptance Test)")) -> 13. Boiler Efficiency (Design) | C103: 0.896 | D103: ± | E103: 0.015
A104: Instructions for completing this spreadsheet
A105: 1. | B105: Ensure that you have completed the first three rows of the application form
A106: 2. | B106: This form should be accompanied by supporting information for the figures quoted. Where this information is in the permit application, reference to the relevant sections of the application can be made.
B107: A Sankey diagram (or equivalent) reflecting the boundaries of the installation used as well as any references to physical properties is the absolute minimum that should be provided for an application based on design information
A108: 3. | B108: We have colour coded the cells in this spreadsheet to assist you in completing this form, an explanation of the colour codes is provided below. The colour will disappear when data has been entered.
B109: Blue cells require data that is essential for the R1 calculation, where information on uncertainty of the data is available it would be useful (but not mandatory) for this to be included for these parameters.
B110: Beige Cells indicate that any data entered will be used in the R1 calculation. They have been used where there is a choice of inputs but not all plants will have data for all the input options.
B111: Where you are entering data into beige cells you need to make sure that you enter data into all the beige cells associated with the input as they are all needed for carrying out the calculation.
B112: Yellow cells have been used to provide flexibility to include fuels or energy uses not identified elsewhere. Supporting information to explain why the standard fields were not appropriate or adequate will need to be provided where these cells are used.
B113: Data entered in uncoloured cells are not used when calculating the R1 energy efficiency factor but can be completed to provide a more complete data set.
B114: Data in the purple cell for the CCF factor is optional. If used the way it was calculated must be explained in supporting information
A115: 4. | B115: Ensure the temperatures entered into cells F19 and F22 (and F25) are the actual temperatures of the heated air in oC.
B116: The spreadsheet uses these values to calculate the specific enthalpy associated with heating the air from ambient 25 oC in cells F20 and F23 (and F26).
A117: 5. | B117: Densities used in cells F18 and F21 (and F24) should be at the temperatures at which the flows quoted in C18 and C21 (and C24) are reported.
B118: The spreadsheet multiplies these pairs of entries to generate a mass of air.
A119: 6. | B119: If you believe that any of the information that you have submitted in this application form is commercially confidential please identify the confidential information and the grounds on which you believe it to be confidential in your covering letter
A120: LIT 5753
A121: EAD/0812/xls/v3

Sheet Summary calculation
A3: Ep (detailed) | B3: =Ep!C36 -> 4492800
A4: Ef + Ei | B4: ='Ef+Ei'!B9 -> 62064.8577
A5: Ew + Ef | B5: ='Ew+Ef'!B12 -> 5656942.506
A6: R1 | B6: =(B3-B4)/(0.97*B5) -> 0.8074623674
A7: CCF | B7: ='Input Page'!B7 -> 1.12
A8: Adjusted R1 | B8: =B6*B7 -> 0.9043578515

Sheet Ep
C1: Quantity in reporting year | E1: Uc | F1: Average during operation over year | H1: Uc | K1: Uc | N1: Uncertainty
A2: Gross electricity meter (Electricity produced at turbine) | C2: ='Input Page'!C9 -> 480000 | D2: MWh
A3: Electricity exported - Net input/output meter | C3: ='Input Page'!C10 -> 440000 | D3: MWh
A4: Heat exported outside R1 boundary | C4: =((C5*L5)-(C6*L6)+(C7*L7)-(C8*L8))/1000 -> 0 | D4: GJ
B5: steam exported | C5: ='Input Page'!C31 -> 0 | D5: tonnes | F5: ='Input Page'!F31 -> 0 | G5: K | I5: ='Input Page'!F32 -> 0 | J5: kPa | L5: ='Input Page'!F33 -> 0 | M5: kJ/kg
B6: condensate returned | C6: ='Input Page'!C34 -> 0 | D6: tonnes | F6: ='Input Page'!F34 -> 0 | G6: K | I6: ='Input Page'!F35 -> 0 | J6: kPa | L6: ='Input Page'!F37 -> 0 | M6: kJ/kg
B7: hot water exported | C7: ='Input Page'!C37 -> 0 | D7: tonnes | F7: ='Input Page'!#REF! ->  | G7: K | I7: ='Input Page'!F38 -> 0 | J7: kPa | L7: ='Input Page'!F39 -> 0 | M7: kJ/kg
B8: hot water returned | C8: ='Input Page'!C40 -> 0 | D8: tonnes | F8: ='Input Page'!F40 -> 0 | G8: K | I8: ='Input Page'!F41 -> 0 | J8: kPa | L8: ='Input Page'!F42 -> 0 | M8: kJ/kg
A10: Internal steam use | C10: =((C11*L11)+(C12*L12)-(C13*L13)+(C14*L14)-(C15*L15)+(C16*L16)-(C17*L17)+(C18*L18)-(C19*L19)+(C20*L20)-(C21*L21)+(C22*L22)-(C23*L23)+(C24*L24)-(C25*L25)+(C26*L26)-(C27*L27))/1000 -> 0 | D10: GJ
B11: for soot blowing (no backflow) | C11: ='Input Page'!C45 -> 0 | D11: tonnes | G11: K | J11: kPa | L11: ='Input Page'!F47 -> 0 | M11: kJ/kg
B12: for steam driven devices | C12: ='Input Page'!C48 -> 0 | D12: tonnes | G12: K | J12: kPa | L12: ='Input Page'!F50 -> 0 | M12: kJ/kg
B13: backflow as steam | C13: ='Input Page'!C51 -> 0 | D13: tonnes | G13: K | J13: kPa | L13: ='Input Page'!F53 -> 0 | M13: kJ/kg
B14: for trace heating | C14: ='Input Page'!C54 -> 0 | D14: tonnes | G14: K | J14: kPa | L14: ='Input Page'!F56 -> 0 | M14: kJ/kg
B15: backflow as condensate | C15: ='Input Page'!C57 -> 0 | D15: tonnes | G15: K | J15: kPa | L15: ='Input Page'!F59 -> 0 | M15: kJ/kg
B16: for re-heating flue gas | C16: ='Input Page'!C60 -> 0 | D16: tonnes | G16: K | J16: kPa | L16: ='Input Page'!F62 -> 0 | M16: kJ/kg
B17: backflow as condensate | C17: ='Input Page'!C63 -> 0 | D17: tonnes | G17: K | J17: kPa | L17: ='Input Page'!F65 -> 0 | M17: kJ/kg
B18: for concentration processes | C18: ='Input Page'!C66 -> 0 | D18: tonnes | G18: K | J18: kPa | L18: ='Input Page'!F68 -> 0 | M18: kJ/kg
B19: backflow as condensate | C19: ='Input Page'!C69 -> 0 | D19: tonnes | G19: K | J19: kPa | L19: ='Input Page'!F71 -> 0 | M19: kJ/kg
B20: for building, equipment, tank heating | C20: ='Input Page'!C72 -> 0 | D20: tonnes | G20: K | J20: kPa | L20: ='Input Page'!F74 -> 0 | M20: kJ/kg
B21: backflow as condensate | C21: ='Input Page'!C75 -> 0 | D21: tonnes | G21: K | J21: kPa | L21: ='Input Page'!F77 -> 0 | M21: kJ/kg
B22: for deaeration and demineralisation | C22: ='Input Page'!C78 -> 0 | D22: tonnes | G22: K | J22: kPa | L22: ='Input Page'!F80 -> 0 | M22: kJ/kg
B23: backflow as condensate | C23: ='Input Page'!C81 -> 0 | D23: tonnes | G23: K | J23: kPa | L23: ='Input Page'!F83 -> 0 | M23: kJ/kg
B24: other internal applications to be specified | C24: ='Input Page'!C84 -> 0 | D24: tonnes | G24: K | J24: kPa | L24: ='Input Page'!F86 -> 0 | M24: kJ/kg
B25: backflow as condensate | C25: ='Input Page'!C87 -> 0 | D25: tonnes | G25: K | J25: kPa | L25: ='Input Page'!F89 -> 0 | M25: kJ/kg
B26: other internal applications to be specified | C26: ='Input Page'!C90 -> 0 | D26: tonnes | G26: K | J26: kPa | L26: ='Input Page'!F92 -> 0 | M26: kJ/kg
B27: backflow as condensate | C27: ='Input Page'!C93 -> 0 | D27: tonnes | G27: K | J27: kPa | L27: ='Input Page'!F95 -> 0 | M27: kJ/kg
A29: Use of condensing energy from steam in flue gas | C29: ='Input Page'!C96 -> 0 | D29: GJ
A31: Backflows of condensate | D31: GJ
B32: Condensate after cooling | D32: tonnes | G32: K | J32: kPa | M32: kJ/kg
B33: Boiler feedwater | D33: tonnes | G33: K | J33: kPa | M33: kJ/kg
A36: Ep | C36: =(((C2-C3)*3.6*2.6)+(C3*3.6*2.6)+(C4+C10+C29)*1.1) -> 4492800

Sheet Ef+Ei
B1: Quantity in reporting year | D1: Uc
A2: Electricity imported - Net input/output meter | B2: ='Input Page'!C11 -> 352.72 | C2: MWh
A3: Other fuel inputs | B3: =((B4*E4*G4)+(B5*E5)+(B6*E6*G6)+(B7*E7*G7))/1000000 -> 58763.3985 | C3: GJ
A4: Light fuel oil | B4: ='Input Page'!C13 -> 1622850 | C4: litres | E4: ='Input Page'!F13 -> 0.85 | F4: kg/l | G4: ='Input Page'!F14 -> 42600 | H4: kJ/kg
A5: Natural gas | B5: ='Input Page'!C15 -> 0 | C5: Nm3 | E5: ='Input Page'!F15 -> 34200 | F5: kJ/Nm3
A6: LPG | B6: ='Input Page'!C17 -> 0 | C6: Nm3 | E6: ='Input Page'!F17 -> 0 | F6: kg/Nm3 | G6: ='Input Page'!F18 -> 0 | H6: kJ/kg
A7: Other fuels similar to light fuel oil | B7: ='Input Page'!C19 -> 0 | C7: litres | E7: ='Input Page'!F19 -> 0 | F7: kg/l | G7: ='Input Page'!F20 -> 0 | H7: kJ/kg
A9: Ef + Ei | B9: =(B2*3.6*2.6)+B3 -> 62064.8577 | C9: GJ

Sheet Ew+Ef
B1: Quantity in reporting year | D1: Uc | E1: Average during operation over year | G1: Uc | J1: Uc | M1: Uc
A2: Superheated steam at boiler outlet | B2: ='Input Page'!C97 -> 2011200 | C2: tonnes | E2: ='Input Page'!F97 -> 380 | F2: K | H2: ='Input Page'!F98 -> 4619 | I2: kPa | K2: ='Input Page'!F99 -> 3155 | L2: kJ/kg
A3: Boiler feedwater | B3: ='Input Page'!C100 -> 2030400 | C3: tonnes | E3: ='Input Page'!F100 -> 131.3 | F3: K | H3: ='Input Page'!F101 -> 6369 | I3: kPa | K3: ='Input Page'!F102 -> 556.2 | L3: kJ/kg
A4: Primary combustion air (heated) | B4: ='Input Page'!C21 -> 2169002123 | C4: Nm3 | E4: ='Input Page'!F22 -> 99.97 | F4: K | H4: ='Input Page'!F21 -> 0.942 | I4: kg/Nm3 | K4: ='Input Page'!F23 -> 75.7197 | L4: kJ/kg | M4: ='Input Page'!#REF! -> 
A5: Secondary combustion air (heated) | B5: ='Input Page'!C24 -> 971588132.6 | C5: Nm3 | E5: ='Input Page'!F25 -> 33.72 | F5: K | H5: ='Input Page'!F24 -> 1.146 | I5: kg/Nm3 | K5: ='Input Page'!F26 -> 8.8072 | L5: kJ/kg | M5: ='Input Page'!#REF! -> 
A6: Recirculated flue gas | B6: =+'Input Page'!C27 -> 0 | C6: Nm3 | E6: =+'Input Page'!F28 -> 0 | F6: K | H6: =+'Input Page'!F27 -> 0 | I6: kg/Nm3 | K6: =+'Input Page'!F29 -> 0 | L6: kJ/kg
A8: Energy of steam | B8: =B2*K2/1000 -> 6345336 | C8: GJ per annum
A9: Energy of feedwater | B9: =B3*K3/1000 -> 1129308.48 | C9: GJ per annum
A10: Energy of combustion air | B10: =((B4*H4*K4)+(B5*H5*K5)+(B6*H6*K6))/1000000 -> 164516.7798 | C10: GJ per annum
A11: Boiler Efficiency | B11: ='Input Page'!C103 -> 0.896 | C11: ± | D11: ='Input Page'!E103 -> 0.015
A12: Ew+Ef | B12: =((B8-B9)/B11)-B10 -> 5656942.506 | C12: GJ per annum

Sheet Version Control
A1: Version | B1: Created by | C1: Changes made | D1: Date
A2: 1 | B2: CDM | C2: Original to be used as a guide | D2: 2011-08-19
A3: 2.1 | B3: CDM | C3: Colour coding essential cells and introducing the notes at the bottom | D3: 2011-10-31
A4: 2.2 | B4: CDM | C4: Removed section 10, added FGR and included indicative properties | D4: 2011-12-31
A5: 2.3 | B5: CDM | C5: Added title, and modified sections 5,6 and 7 so that they did not return negative values | D5: 2012-09-09
A6: 2.4 | B6: MBJ | C6: Amended EP tab to avoid double counting condensate return. Added note to input page. Cell colours amended | D6: 2015-09-04
A7: 3 | B7: MBJ | C7: Climate change factor added. Changes to admin section including section on application fee paid. | D7: 2016-08-18
